bitfinex/quotes_BTCUSD_20240823
["timestamp","ask_amount","ask_price","bid_price","bid_amount"]
[1724450857743,0.44140138,64500.0,64499.0,2.92336532]
[1724450858187,0.44140138,64500.0,64499.0,2.95336532]
[1724450858419,0.1115,64544.0,64514.0,1.97500021]
[1724450858630,0.00827,64548.0,64514.0,2.73932453]
[1724450858631,0.1485,64545.0,64514.0,2.73932453]
[1724450858835,0.1485,64545.0,64538.0,0.774735]
[1724450859037,0.1485,64545.0,64538.0,1.239575]
[1724450859244,0.00827,64548.0,64538.0,1.70564701]
[1724450860053,0.00827,64548.0,64538.0,1.40975301]
[1724450860486,0.00827,64548.0,64538.0,1.41775301]
[1724450860487,0.001827,64539.0,64538.0,1.41775301]
[1724450860698,0.001827,64539.0,64538.0,1.40375301]
[1724450861685,0.001787,64539.0,64538.0,1.71364701]
[1724450861854,0.001787,64539.0,64538.0,1.70564701]
[1724450862060,0.000787,64539.0,64538.0,1.70564701]
[1724450862301,0.00827,64548.0,64547.0,0.780127]
[1724450862526,0.000826,64557.0,64556.0,0.497712]
[1724450862687,0.00827,64562.0,64561.0,1.35168921]
[1724450862903,0.00827,64562.0,64561.0,2.82342366]
[1724450863161,0.00827,64562.0,64561.0,2.30585566]
[1724450863333,0.00827,64562.0,64561.0,2.24318478]
[1724450863539,0.00150533,64562.0,64561.0,1.95573957]
[1724450863750,0.00150533,64562.0,64561.0,1.69948703]
[1724450863951,0.00150533,64562.0,64561.0,1.77598703]
[1724450864354,0.00150533,64562.0,64561.0,2.08577103]
[1724450865188,0.00150533,64562.0,64561.0,2.09977103]
[1724450865400,0.00150533,64562.0,64561.0,1.78998703]
[1724450865609,0.00150533,64562.0,64561.0,1.75045557]
[1724450865809,0.00150533,64562.0,64561.0,1.15417432]
[1724450866083,0.00150533,64562.0,64561.0,1.16717432]
[1724450866273,0.00150533,64562.0,64561.0,1.10297432]
[1724450866472,0.00150533,64562.0,64561.0,1.07497432]
[1724450866895,0.00150533,64562.0,64561.0,1.10297432]
[1724450867270,0.00150533,64562.0,64561.0,0.64885801]
[1724450867871,0.00150533,64562.0,64561.0,0.49268]
[1724450868086,0.00190008,64562.0,64561.0,0.47868]
[1724450868293,0.00150533,64562.0,64561.0,0.49268]
[1724450868494,0.00190008,64562.0,64561.0,0.47868]
[1724450868707,0.26928908,64562.0,64561.0,0.47868]
[1724450868917,0.26928908,64562.0,64561.0,0.49268]
[1724450868918,0.11440008,64562.0,64561.0,0.49268]
[1724450869122,0.11440008,64562.0,64561.0,0.47868]
[1724450869331,0.26828908,64562.0,64561.0,0.46428396]
[1724450869537,1.29352509,64562.0,64561.0,0.49228396]
[1724450869742,1.29352509,64562.0,64561.0,0.47828396]
[1724450869972,1.29252509,64562.0,64561.0,0.46428396]
[1724450870419,1.29352509,64562.0,64561.0,0.47828396]
[1724450870549,1.60330409,64562.0,64561.0,0.47828396]
[1724450870894,1.29352509,64562.0,64561.0,0.47828396]
[1724450871438,1.29352509,64562.0,64561.0,0.46428396]
[1724450871770,1.29252509,64562.0,64561.0,0.47928396]
[1724450871978,1.29952509,64562.0,64561.0,0.47928396]
[1724450872535,1.29952509,64562.0,64561.0,0.47828396]
[1724450872536,1.60230409,64562.0,64561.0,0.47828396]
[1724450872765,1.8737493,64562.0,64561.0,0.47928396]
[1724450873169,1.60230409,64562.0,64561.0,0.47828396]
[1724450873381,1.29252509,64562.0,64561.0,0.47828396]
[1724450873610,1.29952509,64562.0,64561.0,0.47928396]
[1724450873810,1.60930409,64562.0,64561.0,0.47928396]
[1724450874625,1.60230409,64562.0,64561.0,0.47828396]
[1724450874827,1.60230409,64562.0,64561.0,0.46428396]
[1724450875051,1.60930409,64562.0,64561.0,0.46528396]
[1724450875456,1.60230409,64562.0,64561.0,0.46428396]
[1724450875832,1.60930409,64562.0,64561.0,0.46528396]
[1724450876195,1.60230409,64562.0,64561.0,0.46428396]
[1724450876618,1.60930409,64562.0,64561.0,0.46528396]
[1724450877652,1.60930409,64562.0,64561.0,0.46489024]
[1724450877859,1.60230409,64562.0,64561.0,0.46389024]
[1724450878084,1.60930409,64562.0,64561.0,0.46489024]
[1724450878993,1.60930409,64562.0,64561.0,0.46579884]
[1724450879194,1.91908309,64562.0,64561.0,0.46579884]
[1724450879399,1.92158309,64562.0,64561.0,0.42682357]
[1724450879549,1.92158309,64562.0,64534.0,0.0792]
[1724450879550,1.08507575,64535.0,64534.0,0.46876099]
[1724450879756,1.40178748,64535.0,64534.0,0.46876099]
[1724450879956,1.40178748,64535.0,64512.0,0.140306]
[1724450879957,0.15617801,64535.0,64512.0,0.140306]
[1724450880158,0.465,64516.0,64512.0,0.062106]
[1724450880375,0.155,64516.0,64512.0,0.062106]
[1724450880577,0.155,64516.0,64504.0,0.001]
[1724450880578,0.2941,64520.0,64504.0,0.001]
[1724450880772,0.1,64519.0,64508.0,0.46876099]
[1724450880971,0.155009,64513.0,64509.0,0.15617801]
[1724450881191,0.309992,64518.0,64509.0,0.15617801]
[1724450881192,0.155005,64514.0,64509.0,0.15617801]
[1724450881396,0.1,64519.0,64501.0,0.0017]
[1724450881397,0.1,64519.0,64510.0,0.46503]
[1724450881600,0.155009,64513.0,64510.0,0.46503]
[1724450881826,0.1505,64528.0,64514.0,0.0765]
[1724450882061,0.1436,64535.0,64514.0,0.0765]
[1724450882062,0.002,64519.0,64515.0,0.62118801]
[1724450882728,0.1,64529.0,64515.0,0.62118801]
[1724450883141,0.25497,64529.0,64515.0,0.62118801]
[1724450883991,0.1,64529.0,64515.0,0.62118801]
[1724450884171,0.004,64528.0,64515.0,0.62118801]
[1724450884411,0.004,64528.0,64521.0,0.001]
[1724450884610,0.004,64528.0,64522.0,0.7792207]
[1724450884740,0.004,64528.0,64523.0,0.154983]
[1724450884942,0.154949,64538.0,64524.0,0.6242167]
[1724450885154,0.001,64529.0,64524.0,0.6242167]
[1724450885357,0.002,64529.0,64524.0,0.6242167]
[1724450885704,0.001,64529.0,64524.0,0.6242167]
[1724450885906,0.001,64528.0,64524.0,0.6242167]
[1724450886106,0.002,64528.0,64524.0,0.6242167]
[1724450886311,0.002,64528.0,64524.0,0.62111801]
[1724450886503,0.002,64528.0,64525.0,0.00309879]
[1724450886645,0.002,64528.0,64527.0,0.46762]
[1724450886839,0.002,64528.0,64527.0,1.47516501]
[1724450887046,0.00754611,64558.0,64527.0,1.47516501]
[1724450887047,0.1505,64557.0,64537.0,0.309897]
[1724450887242,0.1505,64557.0,64532.0,0.0017]
[1724450887243,0.1505,64557.0,64545.0,0.309857]
[1724450887449,0.1505,64557.0,64547.0,0.0017]
[1724450887450,0.00699679,64556.0,64547.0,0.0017]
[1724450887752,0.00699679,64556.0,64543.0,0.001]
[1724450887753,0.1505,64557.0,64548.0,0.62094801]
[1724450887963,0.00701183,64556.0,64548.0,0.62094801]
[1724450888403,0.1545,64557.0,64548.0,0.62094801]
[1724450888798,0.00802079,64556.0,64548.0,0.62094801]
[1724450888997,0.00702079,64556.0,64548.0,0.62094801]
[1724450889205,0.001,64556.0,64548.0,0.62086818]
[1724450889404,0.00700435,64555.0,64548.0,0.46477]
[1724450889695,0.1446,64556.0,64548.0,0.46477]
[1724450890104,0.00700435,64555.0,64548.0,0.46477]
[1724450890326,0.00700435,64555.0,64548.0,0.47877]
[1724450890757,0.00700435,64555.0,64548.0,0.46477]
[1724450890956,0.00700435,64555.0,64548.0,0.47877]
[1724450891162,0.16191135,64555.0,64548.0,0.47877]
[1724450891531,0.154917,64551.0,64548.0,0.46577]
[1724450891736,0.00700435,64555.0,64548.0,0.47977]
[1724450891737,0.00800435,64555.0,64548.0,0.47977]
[1724450891941,0.00695499,64550.0,64548.0,0.47877]
[1724450892145,0.154916,64551.0,64548.0,0.48077]
[1724450892318,0.00694499,64549.0,64548.0,0.48077]
[1724450892542,0.154912,64553.0,64548.0,0.48077]
[1724450892699,0.00694499,64549.0,64548.0,0.48077]
[1724450892896,0.154915,64552.0,64548.0,0.47877]
[1724450893099,0.30982,64554.0,64548.0,0.47877]
[1724450893100,0.00686401,64549.0,64548.0,0.47877]
[1724450893298,0.309819,64554.0,64548.0,0.47877]
[1724450893462,0.00686401,64549.0,64548.0,0.46477]
[1724450893666,0.154907,64555.0,64548.0,0.46477]
[1724450893979,0.001,64551.0,64548.0,0.47877]
[1724450894190,0.1436,64556.0,64548.0,0.46577]
[1724450894191,0.00787401,64550.0,64548.0,0.46577]
[1724450894639,0.001,64549.0,64548.0,0.47838538]
[1724450894844,0.00686401,64549.0,64548.0,0.46438538]
[1724450894990,0.001,64555.0,64548.0,0.46538538]
[1724450895191,0.001,64555.0,64549.0,0.15927589]
[1724450895394,0.13990533,64562.0,64550.0,0.46514]
[1724450895651,0.154916,64551.0,64550.0,0.46514]
[1724450895857,0.293816,64551.0,64550.0,0.46514]
[1724450896061,0.14578401,64551.0,64550.0,0.46514]
[1724450896468,0.61053201,64551.0,64550.0,0.46514]
[1724450896641,1.06316401,64551.0,64550.0,0.46514]
[1724450896843,1.52917402,64551.0,64550.0,0.46514]
[1724450897243,1.62917402,64551.0,64550.0,0.46514]
[1724450897654,1.62917402,64551.0,64550.0,0.46614]
[1724450898061,1.62917402,64551.0,64550.0,0.46814]
[1724450898445,1.63017402,64551.0,64550.0,0.46514]
[1724450898914,1.62917402,64551.0,64550.0,0.46814]
[1724450899144,1.62917402,64551.0,64550.0,0.46514]
[1724450899357,1.63017402,64551.0,64550.0,0.46514]
[1724450900031,1.63017402,64551.0,64550.0,0.46475335]
[1724450900474,1.62917402,64551.0,64550.0,0.46775335]
[1724450900686,1.63217402,64551.0,64550.0,0.46775335]
[1724450901102,0.10988401,64551.0,64550.0,0.46775335]
[1724450901307,0.00688401,64551.0,64550.0,0.46775335]
[1724450901507,0.00788401,64551.0,64550.0,0.46775335]
[1724450901709,0.00788401,64551.0,64550.0,0.46475335]
[1724450901710,0.001,64551.0,64550.0,0.46475335]
[1724450901920,0.00785397,64551.0,64550.0,0.46475335]
[1724450902126,0.1672,64556.0,64550.0,0.46475335]
[1724450902331,0.001,64551.0,64550.0,0.46575335]
[1724450902885,0.00785791,64551.0,64550.0,0.46575335]
[1724450903291,0.001,64551.0,64550.0,0.46575335]
[1724450903644,0.001,64551.0,64550.0,0.47475335]
[1724450904252,0.00788472,64551.0,64550.0,0.47575335]
[1724450904480,0.001,64551.0,64550.0,0.47575335]
[1724450904894,0.001826,64551.0,64550.0,0.47575335]
[1724450905330,0.00870999,64551.0,64550.0,0.47575335]
[1724450905446,0.00870999,64551.0,64550.0,0.47475335]
[1724450905887,0.33082599,64551.0,64550.0,0.47475335]
[1724450906047,0.17590999,64551.0,64550.0,0.47475335]
[1724450906249,0.33082599,64551.0,64550.0,0.47475335]
[1724450906499,0.17590999,64551.0,64550.0,0.47475335]
[1724450906694,0.33082599,64551.0,64550.0,0.47475335]
[1724450906909,0.64165799,64551.0,64550.0,0.47575335]
[1724450907243,0.95148999,64551.0,64550.0,0.47575335]
[1724450907789,1.5657,64551.0,64550.0,0.47575335]
[1724450907994,1.6657,64551.0,64550.0,0.47575335]
[1724450908239,1.68181601,64551.0,64550.0,0.47575335]
[1724450909218,1.72804191,64551.0,64550.0,0.47575335]
[1724450909621,1.68081601,64551.0,64550.0,0.47475335]
[1724450909827,1.67981601,64551.0,64550.0,0.46475335]
[1724450910222,1.68181601,64551.0,64550.0,0.46475335]
[1724450910446,1.67981601,64551.0,64550.0,0.46475335]
[1724450910698,1.68581601,64551.0,64550.0,0.46475335]
[1724450910998,3.02806471,64551.0,64550.0,0.46475335]
[1724450911360,3.03406471,64551.0,64550.0,0.46475335]
[1724450911654,3.70974623,64551.0,64550.0,0.46475335]
[1724450911887,3.61563353,64551.0,64550.0,0.46475335]
[1724450912405,3.63987457,64551.0,64550.0,0.46475335]
[1724450912562,3.59362587,64551.0,64550.0,0.46475335]
[1724450913474,3.32188905,64551.0,64550.0,0.46475335]
[1724450916376,3.32488905,64551.0,64550.0,0.46475335]
[1724450916535,3.48302073,64551.0,64550.0,0.46475335]
[1724450916735,3.48202073,64551.0,64550.0,0.46475335]
[1724450918355,3.48202073,64551.0,64548.0,0.0009086]
[1724450918356,1.399289,64549.0,64548.0,0.0009086]
[1724450918550,2.30300901,64549.0,64548.0,0.0009086]
[1724450918730,2.14750594,64549.0,64548.0,0.0009086]
[1724450918908,2.45734794,64549.0,64548.0,0.0009086]
[1724450919582,2.47034794,64549.0,64548.0,0.0019086]
[1724450919789,2.48434794,64549.0,64548.0,0.0019086]
[1724450919986,2.47134794,64549.0,64548.0,0.0009086]
[1724450920361,2.16129869,64549.0,64548.0,0.0009086]
[1724450920580,2.00516701,64549.0,64548.0,0.0009086]
[1724450920768,2.00316701,64549.0,64548.0,0.0009086]
[1724450921288,2.01716701,64549.0,64548.0,0.0019086]
[1724450921520,2.00416701,64549.0,64548.0,0.0009086]
[1724450921717,2.00316701,64549.0,64548.0,0.0009086]
[1724450921936,2.17329869,64549.0,64548.0,0.0019086]
[1724450922138,2.17529869,64549.0,64548.0,0.0019086]
[1724450922544,2.17550594,64549.0,64548.0,0.0019086]
[1724450922833,2.17529869,64549.0,64548.0,0.0019086]
[1724450923279,2.48534794,64549.0,64548.0,0.0019086]
[1724450923486,2.50959315,64549.0,64548.0,0.0019086]
[1724450925238,2.5093859,64549.0,64548.0,0.0019086]
[1724450925596,2.50959315,64549.0,64548.0,0.0019086]
[1724450926032,2.1975439,64549.0,64548.0,0.0019086]
[1724450926237,2.1975439,64549.0,64548.0,0.0009466]
[1724450926429,2.48374704,64549.0,64548.0,0.0009466]
[1724450926650,2.50899231,64549.0,64548.0,0.0009466]
[1724450927221,2.01677336,64549.0,64548.0,0.0009466]
[1724450927414,2.10872483,64549.0,64548.0,0.0009466]
[1724450927689,2.10972483,64549.0,64548.0,0.0009466]
[1724450927956,2.01589081,64549.0,64548.0,0.0009466]
[1724450928457,2.04013259,64549.0,64548.0,0.0009466]
[1724450929089,2.15584906,64549.0,64548.0,0.0009466]
[1724450930154,2.15584906,64549.0,64548.0,0.0018552]
[1724450930485,1.27547095,64549.0,64548.0,0.0018552]
[1724450930685,1.2280813,64549.0,64548.0,0.0018552]
[1724450930885,1.0510813,64549.0,64548.0,0.0018552]
[1724450931043,1.00561703,64549.0,64548.0,0.0018552]
[1724450932024,0.99161703,64549.0,64548.0,0.0018552]
[1724450932230,1.30145903,64549.0,64548.0,0.0009086]
[1724450932450,1.31545903,64549.0,64548.0,0.0019086]
[1724450932671,1.36917481,64549.0,64548.0,0.0019086]
[1724450932890,1.72370649,64549.0,64548.0,0.0019086]
[1724450933064,1.74794718,64549.0,64548.0,0.0019086]
[1724450933738,1.74815443,64549.0,64548.0,0.0019086]
[1724450933876,2.05799643,64549.0,64548.0,0.0019086]
[1724450934069,2.19988918,64549.0,64548.0,0.0019086]
[1724450934966,2.20009643,64549.0,64548.0,0.0019086]
[1724450935245,2.19788918,64549.0,64548.0,0.0019086]
[1724450935421,2.19988918,64549.0,64548.0,0.0019086]
[1724450936486,2.20009643,64549.0,64548.0,0.0019086]
[1724450936686,2.19988918,64549.0,64548.0,0.0019086]
[1724450937813,2.33896326,64549.0,64548.0,0.0019086]
[1724450938231,2.64941161,64549.0,64548.0,0.0019086]
[1724450938432,2.20070278,64549.0,64548.0,0.0019086]
[1724450939589,2.20049553,64549.0,64548.0,0.0019086]
[1724450940147,2.33744945,64549.0,64548.0,0.0019086]
[1724450940570,2.33944945,64549.0,64548.0,0.0019086]
[1724450940904,2.64929145,64549.0,64548.0,0.0019086]
[1724450941082,2.6494987,64549.0,64548.0,0.0019086]
[1724450941285,2.51054478,64549.0,64548.0,0.0019086]
[1724450941913,2.20070278,64549.0,64548.0,0.0019086]
[1724450942116,2.51054478,64549.0,64548.0,0.0019086]
[1724450942317,2.20070278,64549.0,64548.0,0.0019086]
[1724450942684,2.51054478,64549.0,64548.0,0.0019086]
[1724450942926,2.51033753,64549.0,64548.0,0.0019086]
[1724450943397,2.51054478,64549.0,64548.0,0.0019086]
[1724450943585,2.20070278,64549.0,64548.0,0.0019086]
[1724450943764,2.35709712,64549.0,64548.0,0.0019086]
[1724450944289,2.66693912,64549.0,64548.0,0.0019086]
[1724450944841,2.19815184,64549.0,64548.0,0.0019086]
[1724450945041,2.0437575,64549.0,64548.0,0.0019086]
[1724450945260,1.9016575,64549.0,64548.0,0.0019086]
[1724450945569,2.04067376,64549.0,64548.0,0.0019086]
[1724450945943,2.03967376,64549.0,64548.0,0.0019086]
[1724450946118,1.9006575,64549.0,64548.0,0.0019086]
[1724450946320,2.05678918,64549.0,64548.0,0.0019086]
[1724450947609,2.05878918,64549.0,64548.0,0.0019086]
[1724450949122,2.05778918,64549.0,64548.0,0.0019086]
[1724450949333,2.05878918,64549.0,64548.0,0.0019086]
[1724450950693,2.05678918,64549.0,64548.0,0.0019086]
[1724450950935,1.74694718,64549.0,64548.0,0.0019086]
[1724450951292,2.21322562,64549.0,64548.0,0.0019086]
[1724450951495,2.05678918,64549.0,64548.0,0.0019086]
[1724450952131,0.9835735,64549.0,64548.0,0.0019086]
[1724450953090,0.6737315,64549.0,64548.0,0.0019086]
[1724450953309,0.6737315,64549.0,64548.0,0.33290135]
[1724450953689,0.6597315,64549.0,64548.0,0.33290135]
[1724450953894,0.03706669,64549.0,64548.0,0.332295]
[1724450954406,0.12891311,64549.0,64548.0,0.332295]
[1724450954822,0.12891311,64549.0,64548.0,0.33050225]
[1724450954823,0.90351811,64549.0,64548.0,0.33050225]
[1724450954997,0.96784637,64549.0,64548.0,0.3301086]
[1724450955199,1.05967786,64549.0,64548.0,0.3301086]
[1724450955338,0.94360901,64549.0,64548.0,0.3301086]
[1724450955791,1.05260901,64549.0,64548.0,0.3311086]
[1724450956165,1.16866759,64549.0,64548.0,0.3311086]
[1724450956999,1.05260901,64549.0,64548.0,0.1468086]
[1724450957243,0.121826,64549.0,64548.0,0.14720225]
[1724450957387,0.021826,64549.0,64548.0,0.32050225]
[1724450957585,0.021826,64549.0,64548.0,0.322295]
[1724450958385,0.009826,64549.0,64548.0,0.322295]
[1724450958590,0.000826,64549.0,64548.0,0.321295]
[1724450958792,0.012826,64549.0,64548.0,0.329295]
[1724450959018,0.012826,64549.0,64548.0,0.321295]
[1724450959256,0.001826,64549.0,64548.0,0.321295]
[1724450959484,0.002826,64549.0,64548.0,0.331295]
[1724450959736,0.002826,64549.0,64548.0,0.334295]
[1724450959737,0.003826,64549.0,64548.0,0.334295]
[1724450960214,0.468589,64549.0,64548.0,0.33250225]
[1724450960977,0.468589,64549.0,64548.0,0.334295]
[1724450961174,0.468589,64549.0,64548.0,0.33389785]
[1724450962585,0.158747,64549.0,64548.0,0.33389785]
[1724450962789,0.468589,64549.0,64548.0,0.33389785]
[1724450962994,0.003826,64549.0,64548.0,0.33389785]
[1724450964145,0.0040329,64549.0,64548.0,0.33389785]
[1724450966296,0.0040329,64549.0,64548.0,0.48882085]
[1724450966702,0.0040329,64549.0,64548.0,0.79866685]
[1724450966901,0.0040329,64549.0,64548.0,0.33389785]
[1724450967114,0.0040329,64549.0,64548.0,0.48882085]
[1724450967337,0.0040329,64549.0,64548.0,0.33389785]
[1724450969173,0.0040329,64549.0,64548.0,0.48882085]
[1724450969326,0.0040329,64549.0,64548.0,0.33389785]
[1724450969524,0.0040329,64549.0,64548.0,0.33350267]
[1724450969904,0.0040329,64549.0,64548.0,0.48842567]
[1724450970313,0.0040329,64549.0,64548.0,0.33350267]
[1724450972645,0.4687959,64549.0,64548.0,0.01350992]
[1724450972844,0.7786379,64549.0,64548.0,0.01350992]
[1724450973668,0.78594671,64549.0,64548.0,0.01350992]
[1724450974972,0.78594671,64549.0,64548.0,0.01311627]
[1724450975176,1.66770126,64549.0,64548.0,0.01311627]
[1724450975380,1.97754326,64549.0,64548.0,0.01311627]
[1724450975580,2.43723147,64549.0,64548.0,0.01311627]
[1724450975792,2.12759672,64549.0,64548.0,0.01311627]
[1724450976169,2.43443872,64549.0,64548.0,0.00011627]
[1724450976571,2.44643872,64549.0,64548.0,0.00111627]
[1724450976922,2.13659672,64549.0,64548.0,0.00011627]
[1724450977458,2.14738947,64549.0,64548.0,0.00011627]
[1724450977664,2.14759672,64549.0,64548.0,0.00011627]
[1724450977865,2.13659672,64549.0,64548.0,0.00011627]
[1724450978062,0.774795,64533.0,64532.0,0.46848109]
[1724450978262,1.03097301,64533.0,64532.0,0.46848109]
[1724450978475,0.154969,64529.0,64528.0,0.0021864]
[1724450978680,0.774845,64529.0,64528.0,0.0021864]
[1724450979248,0.774845,64529.0,64528.0,0.00039365]
[1724450979429,0.154978,64525.0,64524.0,0.00039365]
[1724450979659,0.464935,64525.0,64524.0,0.00039365]
[1724450980118,0.154978,64525.0,64524.0,0.00039365]
[1724450980318,0.464935,64525.0,64524.0,0.00039365]
[1724450980678,0.154978,64525.0,64524.0,0.00039365]
[1724450981021,0.464935,64525.0,64524.0,0.00039365]
[1724450981720,0.465935,64525.0,64524.0,0.01139365]
[1724450981922,0.465935,64525.0,64524.0,0.01439365]
[1724450981923,0.156978,64525.0,64524.0,0.01439365]
[1724450982145,0.002,64525.0,64524.0,0.01439365]
[1724450982365,0.156978,64525.0,64524.0,0.01439365]
[1724450983401,0.002,64525.0,64524.0,0.01439365]
[1724450983612,0.002,64525.0,64524.0,0.014]
[1724450983613,0.62311301,64525.0,64524.0,0.014]
[1724450983854,1.70018401,64525.0,64524.0,0.014]
[1724450984052,1.97048401,64525.0,64524.0,0.014]
[1724450984677,1.96948401,64525.0,64524.0,0.011]
[1724450985090,0.775,64516.0,64515.0,0.00039365]
[1724450985265,0.875,64516.0,64515.0,0.00039365]
[1724450986402,0.876,64516.0,64515.0,0.00939365]
[1724450986655,0.876,64516.0,64515.0,0.00899946]
[1724450986824,0.15501,64512.0,64509.0,0.00270135]
[1724450987035,0.155013,64511.0,64509.0,0.00270135]
[1724450987238,0.1,64516.0,64515.0,0.00179275]
[1724450987440,0.1,64516.0,64515.0,0.14529275]
[1724450987640,0.1,64518.0,64517.0,0.00179275]
[1724450988015,0.46613801,64525.0,64520.0,0.00179275]
[1724450988016,0.1,64521.0,64520.0,0.00179275]
[1724450988221,0.154988,64521.0,64520.0,0.18119275]
[1724450988370,0.1,64524.0,64521.0,0.00179275]
[1724450988773,0.254975,64527.0,64521.0,0.00079275]
[1724450989181,0.1,64527.0,64522.0,0.1435]
[1724450989383,0.309931,64531.0,64522.0,0.1435]
[1724450989384,0.1,64530.0,64522.0,0.1435]
[1724450989919,0.309939,64529.0,64522.0,0.1435]
[1724450990051,0.154977,64526.0,64522.0,0.1435]
[1724450990251,0.1,64525.0,64522.0,0.1435]
[1724450991749,0.154974,64527.0,64522.0,0.1455]
[1724450991750,0.1,64526.0,64522.0,0.1455]
[1724450992103,0.154974,64527.0,64522.0,0.1455]
[1724450992378,0.1,64526.0,64522.0,0.1455]
[1724450992964,0.001,64525.0,64522.0,0.1495]
[1724450993403,0.001,64525.0,64522.0,0.1505]
[1724450993968,0.001,64525.0,64522.0,0.1495]
[1724450994168,0.1,64525.0,64522.0,0.1455]
[1724450994583,0.1,64525.0,64524.0,0.00079275]
[1724450995746,0.101,64525.0,64524.0,0.00079275]
[1724450995975,0.001,64525.0,64524.0,0.00079275]
[1724450996155,0.154975,64527.0,64526.0,0.00039592]
[1724450996348,0.254975,64527.0,64526.0,0.00039592]
[1724450997311,0.00060408,64525.0,64524.0,0.006]
[1724450997522,0.1,64526.0,64522.0,0.1435]
[1724450998082,0.154979,64525.0,64522.0,0.1435]
[1724450998282,0.254978,64526.0,64522.0,0.1435]
[1724450998534,0.001,64525.0,64524.0,0.006]
[1724450999273,0.79881301,64525.0,64524.0,0.008]
[1724450999473,1.10877001,64525.0,64524.0,0.008]
[1724450999685,1.20877001,64525.0,64524.0,0.008]
[1724451000234,1.51772701,64525.0,64524.0,0.002]
[1724451000564,1.51872701,64525.0,64524.0,0.008]
[1724451001608,1.52372701,64525.0,64524.0,0.008]
[1724451002923,1.52455301,64525.0,64524.0,0.008]
[1724451003774,1.21459601,64525.0,64524.0,0.008]
[1724451003973,0.106826,64525.0,64524.0,0.145]
[1724451004191,0.006826,64525.0,64524.0,0.145]
[1724451005044,0.006826,64525.0,64524.0,0.919905]
[1724451005290,0.006826,64525.0,64524.0,0.299981]
[1724451005476,0.006826,64525.0,64524.0,0.30268617]
[1724451005682,0.006826,64525.0,64524.0,0.60954893]
[1724451006328,0.006826,64525.0,64524.0,0.607943]
[1724451006552,0.006826,64525.0,64524.0,0.609943]
[1724451006753,0.006826,64525.0,64524.0,1.223867]
[1724451006754,0.005826,64525.0,64524.0,1.223867]
[1724451006959,0.005826,64525.0,64524.0,1.56754501]
[1724451007106,0.006826,64525.0,64524.0,1.56554501]
[1724451007317,0.006826,64525.0,64524.0,1.55554501]
[1724451007516,0.006826,64525.0,64524.0,1.55454501]
[1724451007715,0.007826,64525.0,64524.0,1.56754501]
[1724451007919,0.006826,64525.0,64524.0,1.55454501]
[1724451008303,0.008826,64525.0,64524.0,1.57154501]
[1724451008524,0.006826,64525.0,64524.0,1.55954501]
[1724451008738,0.006826,64525.0,64524.0,1.55854501]
[1724451008977,0.005826,64525.0,64524.0,1.088405]
[1724451009180,0.005826,64525.0,64524.0,0.473481]
[1724451009181,0.006826,64525.0,64524.0,0.473481]
[1724451009556,0.006826,64525.0,64524.0,0.783443]
[1724451009931,0.005826,64525.0,64524.0,0.137]
[1724451010103,0.006826,64525.0,64524.0,0.014]
[1724451010245,0.93889601,64525.0,64524.0,0.019]
[1724451010446,1.52555301,64525.0,64524.0,0.019]
[1724451011043,1.51955301,64525.0,64524.0,0.005]
[1724451011179,1.52055301,64525.0,64524.0,0.019]
[1724451011385,1.51955301,64525.0,64524.0,0.005]
[1724451011599,0.155001,64516.0,64511.0,0.46876099]
[1724451011845,0.309993,64518.0,64511.0,0.46876099]
[1724451012044,0.154998,64517.0,64509.0,0.1559246]
[1724451012385,0.309982,64520.0,64510.0,0.155014]
[1724451012386,0.154996,64518.0,64510.0,0.155014]
[1724451012810,0.154996,64518.0,64509.0,0.0009086]
[1724451012811,0.001,64516.0,64511.0,0.004]
[1724451013178,0.001,64516.0,64512.0,0.1812]
[1724451013383,0.154993,64519.0,64512.0,0.1812]
[1724451013666,0.464971,64521.0,64512.0,0.336208]
[1724451013850,0.15499,64521.0,64512.0,0.336208]
[1724451014054,0.001,64516.0,64513.0,0.155007]
[1724451014414,0.001,64518.0,64512.0,0.1812]
[1724451014615,0.001,64518.0,64512.0,0.347208]
[1724451014819,0.001,64518.0,64512.0,0.011]
[1724451014820,0.15617801,64517.0,64512.0,0.011]
[1724451015016,0.15617801,64517.0,64510.0,0.004]
[1724451015017,0.185,64516.0,64510.0,0.004]
[1724451015219,0.185,64516.0,64512.0,0.0009086]
[1724451015220,0.155003,64515.0,64512.0,0.0009086]
[1724451015426,0.34117801,64516.0,64512.0,0.0009086]
[1724451015625,0.001,64519.0,64512.0,0.1821086]
[1724451015626,0.155994,64519.0,64512.0,0.1821086]
[1724451015827,0.155994,64519.0,64513.0,0.465]
[1724451016246,0.001,64516.0,64513.0,0.479]
[1724451016657,0.002,64516.0,64513.0,0.465]
[1724451016902,0.002,64516.0,64514.0,0.155004]
[1724451017033,0.001,64516.0,64513.0,0.465]
[1724451017238,0.001,64519.0,64513.0,0.620006]
[1724451017460,0.002,64516.0,64513.0,0.483]
[1724451017669,0.002,64516.0,64513.0,0.469]
[1724451018036,0.002,64516.0,64514.0,0.169003]
[1724451018215,0.003,64516.0,64515.0,0.46501]
[1724451018885,0.002,64516.0,64515.0,0.46501]
[1724451019914,0.002,64516.0,64515.0,0.46861744]
[1724451019915,0.001,64516.0,64515.0,0.46861744]
[1724451020108,0.001,64516.0,64515.0,1.06842444]
[1724451020311,0.002,64516.0,64515.0,1.37842944]
[1724451020489,0.001,64516.0,64515.0,1.37842944]
[1724451020715,0.001,64516.0,64515.0,2.02581245]
[1724451020921,0.002,64516.0,64515.0,2.03981245]
[1724451021337,0.002,64516.0,64515.0,2.45269596]
[1724451021541,0.002,64516.0,64515.0,2.04081245]
[1724451021740,0.002,64516.0,64515.0,2.03981245]
[1724451022739,0.002,64516.0,64515.0,1.57362944]
[1724451024626,0.002,64516.0,64515.0,0.48261744]
[1724451024627,0.342,64516.0,64515.0,0.48261744]
[1724451024830,0.652,64516.0,64515.0,0.48261744]
[1724451025035,0.962,64516.0,64515.0,0.48261744]
[1724451025208,1.097,64516.0,64515.0,0.48261744]
[1724451025411,1.25317801,64516.0,64515.0,0.48261744]
[1724451025785,1.25317801,64516.0,64515.0,0.48222984]
[1724451026951,1.35317801,64516.0,64515.0,0.48222984]
[1724451027903,1.66317801,64516.0,64515.0,0.48222984]
[1724451028083,1.75598366,64516.0,64515.0,0.48222984]